Cogmind - Beta 16 @@@ ROGUE MODE // 2025.10.23 @ 19:47:19 Player: beans Result: Destroyed by G-34 Mercenary with Small Laser Performance ------------- Evolutions (0) 0 Regions Visited (1) 200 Robots Destroyed (32) 160 Value Destroyed (762) 762 Prototype IDs (2) 40 Alien Tech Used (0) 0 Bonus (22) 22 TOTAL SCORE: 1184 Bonus ------- High Alert Combat Kills 22 Cogmind --------- Core Integrity 0/250 Matter 126/300 Energy 99/100 System Corruption 0% Temperature Cool (6) Movement Flying (37) Location -10/Materials Parts ------- > --- POWER (1) -------- (None) > --- PROPULSION (2) --- Flight Unit Flight Unit > --- UTILITY (2) ------ Signal Interpreter > --- WEAPON (2) ------- Small Laser > --- INVENTORY (5) ---- Improved Terrain Scanner Seismic Detector Peak State ------------ > --- POWER ------------ Ion Engine > --- PROPULSION ------- Light Treads Light Treads > --- UTILITY ---------- Improved Terrain Scanner Seismic Detector > --- WEAPON ----------- Medium Laser Small Laser > --- INVENTORY -------- (None) [Rating: 9] Favorites ----------- Power Ion Engine Engine Ion Engine Propulsion Light Treads Treads Light Treads Flight Unit Flight Unit Utility Improved Terrain Scanner Device Improved Terrain Scanner Processor Signal Interpreter Weapon Small Laser Energy Gun Small Laser Launcher Grenade Launcher Build | -11 -10 ------- Run | Yrd Mat Slots Evolved . | . . Power . | . . Propulsion . | . . Utility . | . . Weapon . | . . Parts Attached 17 | 7 10 Power 2 | 1 1 Engine 2 | 1 1 Core . | . . Reactor . | . . Propulsion 7 | 2 5 Treads 2 | 2 . Leg . | . . Wheel . | . . Hover . | . . Flight 5 | . 5 Utility 3 | 2 1 Device 2 | 2 . Storage . | . . Processor 1 | . 1 Hackware . | . . Protection . | . . Artifact . | . . Weapon 5 | 2 3 Energy Gun 2 | 2 . Energy Cannon . | . . Ballistic Gun . | . . Ballistic Cannon . | . . Launcher 3 | . 3 Special Weapon . | . . Impact Weapon . | . . Slashing Weapon . | . . Piercing Weapon . | . . Special Melee Weapon . | . . Unidentified Prototypes . | . . Parts Lost 8 | . 8 Power 2 | . 2 Propulsion 3 | . 3 Utility . | . . Weapon 3 | . 3 Highest Loss Streak 3 | . 3 To Critical Strikes . | . . Average Backups 2 | . 2 Power . | . . Propulsion . | . . Utility 1 | . 2 Weapon . | . . Tool/Special . | . . Unused Backups . | . . Power . | . . Propulsion . | . . Utility . | . . Weapon . | . . Tool/Special . | . . Average Slot Usage (%) 71 | . 71 Engine 9 | . 9 Treads 15 | . 15 Flight 10 | . 10 Device 7 | . 7 Processor 4 | . 4 Energy Gun 17 | . 17 Launcher 5 | . 5 Peak Build Rating 9 | 9 9 Average Rating 6 | 6 5 On Entrance 4 | . 9 Avg Prop Armor Cover (%) . | . . Naked Turns . | . . Heaviest Build 10 | 10 10 Greatest Support 40 | 40 40 Greatest Overweight (x) 1 | . 1 Average Overweight (x) . | . . Largest Inventory Capacity 5 | 5 5 Average Capacity 5 | 5 5 Most Carried 5 | 3 5 Average Carried 2 | . 2 Final Capacity 5 | 5 5 Final Carried 2 | . 2 Class Distribution -------------------- 100% | Mutant Dominant Class ---------------- Mutant | -10/Materials Resources | -11 -10 ----------- Run | Yrd Mat Matter Collected 501 | 206 295 Remotely . | . . Salvage Created 635 | 75 560 Parts 50 | 8 42 Haulers Intercepted 1 | . 1 Recyclers Shooed . | . . Parts Field Recycled . | . . Retrieved Matter . | . . Parts Self-Destructed . | . . Prevented . | . . Parts Restored . | . . Kills | -11 -10 ------- Run | Yrd Mat Combat Hostiles Destroyed 21 | . 21 Guns 6 | . 6 AOE 15 | . 15 Classes Destroyed 8 | 2 6 Worker 2 | . 2 Builder 2 | . 2 Tunneler 1 | 1 . Hauler 1 | . 1 Recycler 2 | 1 1 Watcher 3 | . 3 Swarmer 9 | . 9 Grunt 12 | . 12 Best Kill Streak 6 | 2 6 Combat Bots Only 6 | . 6 Max Kills in Single Turn 3 | 1 3 Gunslinging . | . . Exploded 3 | . 3 Melee . | . . Uniques/NPCs Destroyed . | . . Combat | -11 -10 -------- Run | Yrd Mat Hostile Shots Fired 105 | . 105 Missed 33 | . 33 Hits 72 | . 72 Projectile 72 | . 72 Critical Strikes 2 | . 2 Damage Taken 844 | . 844 Core 259 | . 259 Absorbed by Shields . | . . Core Remaining (%) 100 | 100 . Volleys Fired 58 | 3 55 Largest 2 | 2 2 Hottest 90 | 90 90 Shots Fired 86 | 6 80 Gun 55 | 6 49 Cannon . | . . Launcher 31 | . 31 Special . | . . Kinetic . | . . Thermal 55 | 6 49 Explosive 31 | . 31 Electromagnetic . | . . Robot Hit Streak 9 | 2 9 Robot Miss Streak 6 | 1 6 Penetration Max . | . . Secondary Targets . | . . Shots Hit Robots 40 | 4 36 Core Hits 49 | 3 46 Critical Kills . | . . Critical Parts Destroyed . | . . Critical Strikes 1 | . 1 Burn 1 | . 1 Melee Attacks . | . . Impact . | . . Slashing . | . . Piercing . | . . Sneak Attacks . | . . Combat Hostiles . | . . Follow-up Attacks . | . . Damage Inflicted 1643 | 47 1596 Guns 374 | 47 327 Cannons . | . . Explosions 1269 | . 1269 Melee . | . . Ramming . | . . Kinetic . | . . Thermal 374 | 47 327 Explosive 1269 | . 1269 Electromagnetic . | . . Impact . | . . Slashing . | . . Piercing . | . . Highest Corruption . | . . Average Corruption . | . . Corruption Purged . | . . Corruption Blocked . | . . Overload Shots . | . . Overflow Damage 50 | . 50 Projectiles . | . . Explosions 50 | . 50 Melee . | . . Knockbacks . | . . Impact . | . . Kinetic . | . . Secondary . | . . Self-Inflicted Damage 135 | . 135 Shots 6 | . 6 Rammed . | . . Targets Rammed . | . . Kicked . | . . Crushed . | . . Highest Temperature 253 | 60 253 Average Temperature 92 | 26 98 Received Heat Transfer 458 | . 458 Siege Activations . | . . Martial Activations . | . . Shielding Activations . | . . Robots Disrupted . | . . Combat Hostiles . | . . Robots Corrupted . | . . Combat Hostiles . | . . Parts Fried . | . . Impact Corruptions . | . . Robots Melted . | . . Combat Hostiles . | . . Parts Melted 4 | . 4 Heat Transferred 1018 | 124 894 Parts Sabotaged . | . . Parts Stolen . | . . Parts Stripped . | . . Power Chain Reactions . | . . Alert | -11 -10 ------- Run | Yrd Mat Maximum Alert Level 2 | . 2 Low Security (%) 73 | 100 66 Level 1 5 | . 7 Level 2 20 | . 25 Level 3 . | . . Level 4 . | . . Level 5 . | . . High Security . | . . Max Security . | . . Peak Influence 655 | 5 655 Initial . | . . Average 137 | . 175 Influence Increases 913 | 10 903 Destroy 0b10 Robot/C 420 | . 420 Destroy 0b10 Robot/NC 55 | 10 45 Destroy Leader 88 | . 88 Select Force Hacks 130 | . 130 Disable Machine 75 | . 75 Destroy Structure 100 | . 100 Partial Spotted 15 | . 15 Lose Combat Pursuer 30 | . 30 Influence Decreases 258 | 10 248 Time Decay 178 | 10 168 Lost Part 80 | . 80 Squads Dispatched 7 | . 7 Investigation 7 | . 7 Extermination . | . . Reinforcement . | . . Assault . | . . Garrison . | . . Intercept . | . . Searches Triggered . | . . Construction Impeded . | . . Haulers Reinforced . | . . Active Scanning Responses . | . . Cargo Convoy Interrupts . | . . Stealth | -11 -10 --------- Run | Yrd Mat Distress Signals 1 | . 1 Communications Jammed . | . . Distress Signals . | . . Times Spotted 35 | . 35 Peak Tracking Total 7 | . 7 Tactical Retreats 2 | . 2 Traps | -11 -10 ------- Run | Yrd Mat Traps Triggered 1 | . 1 Indirectly . | . . Trap Hack Attempts . | . . Triggered . | . . Disarmed . | . . Reprogrammed . | . . Reused . | . . Traps Extracted . | . . Installed . | . . Triggered . | . . Machines | -11 -10 ---------- Run | Yrd Mat Machines Disabled 5 | . 5 Max in Single Turn 1 | . 1 Machines Repaired . | . . Machines Dismantled . | . . Machines Sabotaged 2 | . 2 Overloaded Fab Kills . | . . Hacking | -11 -10 --------- Run | Yrd Mat Machines Accessed 8 | . 8 Terminals 6 | . 6 Fabricators . | . . Repair Stations 1 | . 1 Recycling Units 1 | . 1 Scanalyzers . | . . Garrison Access . | . . Total Hacks 20 | . 20 Successful 8 | . 8 Failed 12 | . 12 Catastrophic 1 | . 1 Database Lockouts . | . . Manual 14 | . 14 Terminals 16 | . 16 Fabricators . | . . Repair Stations 2 | . 2 Recycling Units 2 | . 2 Scanalyzers . | . . Garrison Access . | . . Terminal Hacks 2 | . 2 Prototype ID Bank 1 | . 1 Dispatch Records 1 | . 1 Fabricator Hacks . | . . Repair Station Hacks . | . . Recycling Unit Hacks . | . . Scanalyzer . | . . Garrison Access Hacks . | . . Unauthorized Hacks 6 | . 6 Terminals 4 | . 4 Sabotage 4 | . 4 Fabricators . | . . Repair Stations 1 | . 1 Mechanics 1 | . 1 Recycling Units 1 | . 1 Tunnel 1 | . 1 Scanalyzers . | . . Garrison Access . | . . Data Cores Recovered . | . . Used . | . . Hacking Detections 6 | . 6 Full Trace Events 2 | . 2 Feedback Events . | . . Feedback Blocked . | . . Robot Schematics Acquired . | . . Robots Built . | . . Authchips . | . . Time . | . . Total Robot Build Rating . | . . Part Schematics Acquired . | . . Parts Built . | . . Authchips . | . . Time . | . . Total Part Build Rating . | . . Part Studies Acquired . | . . Parts Repaired . | . . Time . | . . Parts Recycled . | . . Recycled Matter . | . . Retrieved Matter . | . . Retrieved Components . | . . Parts Scanalyzed . | . . Part Schematics Acquired . | . . Parts Damaged . | . . Bothacking | -11 -10 ------------ Run | Yrd Mat Used RIF Installer . | . . Robots Hacked . | . . Non-combat . | . . Combat . | . . Robot Hacks Applied . | . . Relay Couplers Released . | . . Fabnet Peak Effective % . | . . Robots Rewired . | . . Allies Hacked . | . . Hacks Repelled . | . . Allies | -11 -10 -------- Run | Yrd Mat Total Allies . | . . Largest Group . | . . Highest-Rated Group . | . . Highest-Rated Ally . | . . Total Orders . | . . Ally Attacks . | . . Total Damage . | . . Kills . | . . Allies Corrupted . | . . Allies Melted . | . . Intel | -11 -10 ------- Run | Yrd Mat Active Infowar (turns) 457 | 114 343 Terrain 457 | 114 343 Seismic 119 | 104 15 Robot Analysis Total . | . . Derelict Logs Recovered . | . . Drone Launches . | . . Drone Recoveries . | . . Exploration | -11 -10 ------------- Run | Yrd Mat Turns Passed 908 | 196 712 Spaces Moved 803 | 97 706 Core 11 | 11 . Treads 291 | 86 205 Legs . | . . Wheels . | . . Hover . | . . Flight 501 | . 501 Fastest Speed 37 | 50 37 Average Speed 85 | 147 77 Slowest Speed 160 | 160 160 Overloaded Moves . | . . Propulsion Burnouts . | . . Robots Hopped 2 | . 2 Potential Cave-ins . | . . Cave-ins Triggered . | . . Exploration Rate (%) 47 | 6 88 Regions Visited 1 Branch Regions . Pre-discovered Areas 1 | . 1 Known Exits Taken . | . . Unknown Exits Taken 1 | 1 . Scrap Searched . | . . Spaces Dug 16 | . 16 Terrain Destroyed 120 | . 120 Melee . | . . Projectile . | . . AOE 120 | . 120 Terrain Rammed . | . . Walls Destroyed . | . . Machines Disabled . | . . Actions | -11 -10 --------- Run | Yrd Mat Total 938 | 144 794 Wait 36 | 31 5 Move 799 | 96 703 Hop 1 | . 1 Pick Up 14 | 7 7 Fast Attach 4 | . 4 Attach 15 | 7 8 Detach 6 | . 6 Swap 1 | . 1 Drop 4 | . 4 Fire 58 | 3 55 Melee . | . . Ram . | . . Kick . | . . Crush . | . . Escape Stasis . | . . Rewire . | . . Trap . | . . Miscellaneous . | . . Route ------- -11/Scrapyard -10/Materials (discovered 3 exits: [*Mat] / *Min x2) History --------- Turn | Location | Event 7 | -11/Scrapyard | Discovered new exit (range 14) 197 | -11/Scrapyard | Entered Materials 285 | -10/Materials | Discovered new exit (range 14) 309 | -10/Materials | Build established: Mutant 717 | -10/Materials | Core integrity fell below 50% 732 | -10/Materials | Discovered new exit (range 16) 753 | -10/Materials | Lost 3 parts (1p2n) 784 | -10/Materials | Discovered new exit (range 13) 797 | -10/Materials | Derelicts attacked the area 886 | -10/Materials | Core integrity fell below 20% 902 | -10/Materials | Identified exit to Mines 909 | -10/Materials | Destroyed by G-34 Mercenary with Small Laser Last Messages --------------- Purification Channel disabled. Grenade Launcher destroyed. Destroyed Grenade Launcher. G-34 Mercenary destroyed. Acquired 38 matter. K-01 Serf collects debris. Matter Filter disabled. K-01 Serf collects debris. Critical hit (Meltdown: +260). The unstable cave ceiling collapses. K-01 Serf collects debris. K-01 Serf destroyed. Grenade Launcher destroyed. Destroyed Grenade Launcher. Acquired 2 matter. A-02 Transporter heat spikes uncontrollably. A-02 Transporter heat short circuits Ion Engine. Extracted 50 matter. D3-8JS(R) destroyed. EXIT=IDENTIFIED: MINES Map ----- +----------------------------------------------------+ | | | | | | | | | | | | | ?????????????????????????????????????????????????? | | ?????????????????????????????????????????????????? | | ?????????????????????????????????????????????????? | | ?????????????????????????????????????????????????? | | ?????????????????????????????????????????????????? | | ?????????????????????????????????????????????????? | | ??????????????####???????????????????????????????? | | ?????????? ???????????????????????????????? | | ????????? +???????????########???????????? | | ????????? #???????????# #???????????? | | ?????????# #???????????# #???????????? | | ?????????# #???????????# #?#?????????? | | ?????????# #???????????# # #????#????? | | ?????????# #?########### "T" # #????????#? | | ?????????# #?# [# """ # #?????????? | | ?????????# #?# ! ## # # #?????????? | | ########## #?# = #?????????? | | ! # #?# = # #?#??#??### | | # #######/##### #???????# | | """ @ #???????# | | "" """ ! g g #+####????# | | "" """ %! g * #????# | | = ###+####### g #????# | | ####### #? ?????# = #??#?# | | #?# #? ?????# # #????# | | #?# """" =*= # ????## ############ | | #?# """" %%==! # ?????# ##?# # | | #?# """" # [*%* # ! ????# T#?# """" # | | #?# # = # ????# ##?# """" + | | #?#/ "T" # # ???# ##?#! """" # | | #?########=% # * ???# ##?# # | | ??????#### ############ ############ | | ?????## #??# #? ??????# | | ????## #### ##?# #???? ??# | | ##??# #""" #?# """ +??? ????# | | ##?# ! "" #?# "Y" #???"????# | | ####=% #"! #?# " " #??????#?# | | !&%[&" #"" > #?# #????????# | | &=% ### #"| #?# #???##???# | | #?# #" #?# #?######## | | = #?# #""" #?# #?# # | | = * #?# #### ##?# #?# # | | [ #?# #??# #?# + | | # ##?# !!#??# #?# """ # | +----------------------------------------------------+ Best States ------------- Heat Dissipation 25 Energy Generation 10 Energy Capacity 250 Matter Stores 300 Matter Capacity 300 Sight Range 16 Terrain Scan Range 16 Terrain Scan Density 10 Evasion (%) 62 Recoil Reduction 2 Item Schematics ----------------- None Robot Schematics ------------------ None Fabricated ------------ Nothing Repaired ---------- Nothing Studied --------- None Alien Tech Used ----------------- None Achievements -------------- None Challenges ------------ None Game ------ Seed RemoteReactionChip Manual? 0 Play Time 00:10:41 Cumulative 195.1 hours Start 2025.10.23 @ 19:37:13 End 2025.10.23 @ 19:47:19 Sessions 1 Manual Loads 0 Difficulty Rogue Special Mode None Game No. 576 Rogue 575 Adventurer 1 Explorer 0 Win Type - Total 0 Types 0/0/0/0/0/0/0/0/0/0 Lore% 63 Gallery% 59 Achievement% 30 Wizard Run 0 Options --------- Layout 1 ASCII 0 Keyboard 0 Movement Mouse Keybinds 0 Fullscreen 1 Font 24/Smallcaps Map View 50x35 Zoom Use 0% Tactical HUD 0 Map Filters NONE Filters NONE Steam 1 RUN: 165cf026-90bc-4ac4-8487-a6fcd13c31a1